lending/lending_fUSD_20250917
["ID","MTS","AMOUNT","RATE_DAILY","PERIOD"]
[385909105,1758131449003,-300.0,0.00024312,3]
[385909106,1758131449012,-400.0,0.00024312,2]
[385909107,1758131449021,-400.0,0.00024312,2]
[385909108,1758131449031,-400.0,0.00024312,2]
[385909109,1758131449040,-400.0,0.00024312,2]
[385909110,1758131449050,-400.0,0.00024312,2]
[385909111,1758131449060,-400.0,0.00024312,2]
[385909112,1758131449070,-400.0,0.00024312,2]
[385909113,1758131449079,-400.0,0.00024312,2]
[385909114,1758131449089,-400.0,0.00024312,2]
[385909115,1758131449098,-400.0,0.00024312,2]
[385909116,1758131449108,-400.0,0.00024312,2]
[385909117,1758131449117,-615.91,0.00024312,2]
[385909118,1758131449126,-404.34870602,0.00024312,2]
[385909119,1758131449136,-400.0,0.00024312,2]
[385909120,1758131449145,-400.0,0.00024312,2]
[385909121,1758131449154,-252.07383361,0.00024312,2]
[385909122,1758131449164,-400.0,0.00024312,2]
[385909123,1758131449173,-411.41482138,0.00024312,2]
[385909124,1758131449183,-400.0,0.00024312,2]
[385909125,1758131449192,-500.0,0.00024312,2]
[385909126,1758131449202,-306.88619006,0.00024312,2]
[385909127,1758131449212,-400.0,0.00024312,2]
[385909128,1758131449221,-400.0,0.00024312,2]
[385909129,1758131449231,-400.0,0.00024312,2]
[385909130,1758131449240,-401.11853474,0.00024312,2]
[385909131,1758131449249,-400.0,0.00024312,2]
[385909132,1758131449260,-400.0,0.00024312,2]
[385909133,1758131449272,-473.21135664,0.00024312,2]
[385909134,1758131449282,-400.0,0.00024312,2]
[385909135,1758131449292,-460.04,0.00024312,2]
[385909136,1758131449301,-400.0,0.00024312,2]
[385909137,1758131449310,-400.0,0.00024312,2]
[385909138,1758131449321,-400.0,0.00024312,2]
[385909139,1758131449330,-402.27842298,0.00024312,2]
[385909140,1758131449339,-402.32180354,0.00024312,2]
[385909141,1758131449350,-444.61,0.00024312,2]
[385909142,1758131449360,-400.0,0.00024312,2]
[385909143,1758131449369,-400.0,0.00024312,2]
[385909144,1758131449379,-400.0,0.00024312,2]
[385909145,1758131449388,-460.62,0.00024312,2]
[385909146,1758131449398,-401.76941955,0.00024312,2]
[385909147,1758131449407,-400.0,0.00024312,2]
[385909148,1758131449417,-400.0,0.00024312,2]
[385909149,1758131449426,-400.0,0.00024312,2]
[385909150,1758131449435,-515.94106364,0.00024312,2]
[385909151,1758131449444,-400.0,0.00024312,2]
[385909152,1758131449453,-400.0,0.00024312,2]
[385909153,1758131449463,-438.44,0.00024312,2]
[385909154,1758131449473,-557.59,0.00024312,2]
[385909155,1758131449482,-400.0,0.00024312,2]
[385909156,1758131449491,-405.55194168,0.00024312,2]
[385909157,1758131449500,-402.94839304,0.00024312,2]
[385909158,1758131449510,-405.64072844,0.00024312,2]
[385909159,1758131449519,-400.0,0.00024312,2]
[385909160,1758131449528,-400.0,0.00024312,2]
[385909161,1758131449537,-400.0,0.00024312,2]
[385909162,1758131449546,-400.0,0.00024312,2]
[385909163,1758131449556,-404.06072965,0.00024312,2]
[385909164,1758131449565,-400.0,0.00024312,2]
[385909165,1758131449575,-400.0,0.00024312,2]
[385909166,1758131449584,-631.33,0.00024312,2]
[385909167,1758131449593,-400.0,0.00024312,2]
[385909168,1758131449602,-418.13563862,0.00024312,2]
[385909169,1758131449611,-720.58,0.00024312,2]
[385909170,1758131449620,-400.0,0.00024312,2]
[385909171,1758131449629,-400.0,0.00024312,2]
[385909172,1758131449638,-400.0,0.00024312,2]
[385909173,1758131449648,-400.0,0.00024312,2]
[385909174,1758131449657,-401.90756252,0.00024312,2]
[385909175,1758131449666,-447.22,0.00024312,2]
[385909176,1758131449675,-400.0,0.00024312,2]
[385909177,1758131449684,-400.0,0.00024312,2]
[385909178,1758131449694,-456.92,0.00024312,2]
[385909179,1758131449703,-400.0,0.00024312,2]
[385909180,1758131449713,-400.0,0.00024312,2]
[385909181,1758131449723,-1127.27,0.00024312,2]
[385909182,1758131449732,-400.0,0.00024312,2]
[385909183,1758131449741,-400.0,0.00024312,2]
[385909184,1758131449750,-502.01,0.00024312,2]
[385909185,1758131449760,-422.92,0.00024312,2]
[385909186,1758131449770,-400.0,0.00024312,2]
[385909187,1758131449779,-867.5,0.00024312,2]
[385909188,1758131449788,-400.0,0.00024312,2]
[385909189,1758131449797,-400.0,0.00024312,2]
[385909190,1758131449805,-255.0004225,0.00024312,2]
[385909191,1758131449815,-400.0,0.00024312,2]
[385909192,1758131449823,-400.0,0.00024312,2]
[385909193,1758131449833,-502.56,0.00024312,2]
[385909194,1758131449842,-400.0,0.00024312,2]
[385909195,1758131449853,-492.25,0.00024312,2]
[385909196,1758131449862,-400.0,0.00024312,2]
[385909197,1758131449871,-400.0,0.00024312,2]
[385909198,1758131449880,-400.0,0.00024312,2]
[385909199,1758131449889,-400.0,0.00024312,2]
[385909200,1758131449898,-671.57,0.00024312,2]
[385909201,1758131449907,-400.0,0.00024312,2]
[385909202,1758131449917,-400.0,0.00024312,2]
[385909203,1758131449927,-401.71317809,0.00024312,2]
[385909204,1758131449936,-815.91,0.00024312,2]
[385909205,1758131449945,-400.0,0.00024312,2]
[385909206,1758131449954,-400.0,0.00024312,2]
[385909207,1758131449963,-480.06,0.00024312,2]
[385909208,1758131449972,-400.0,0.00024312,2]
[385909209,1758131449981,-266.94669375,0.00024312,2]
[385909210,1758131449990,-400.0,0.00024312,2]
[385909211,1758131449999,-400.0,0.00024312,2]
[385909212,1758131450009,-1119.25,0.00024312,2]
[385909213,1758131450019,-400.0,0.00024312,2]
[385909214,1758131450028,-403.7480667,0.00024312,2]
[385909215,1758131450037,-400.0,0.00024312,2]
[385909216,1758131450046,-413.30349321,0.00024312,2]
[385909217,1758131450055,-400.0,0.00024312,2]
[385909218,1758131450064,-928.99,0.00024312,2]
[385909219,1758131450073,-404.74886059,0.00024312,2]
[385909220,1758131450082,-584.06,0.00024312,2]
[385909221,1758131450091,-509.92,0.00024312,2]
[385909222,1758131450101,-416.85768204,0.00024312,2]
[385909223,1758131450109,-400.0,0.00024312,2]
[385909224,1758131450119,-400.0,0.00024312,2]
[385909225,1758131450127,-400.0,0.00024312,2]
[385909226,1758131450298,-400.0,0.00024312,2]
[385909227,1758131450325,-254.85827877,0.00024312,2]
[385909228,1758131450335,-401.58364583,0.00024312,2]
[385909229,1758131450344,-400.0,0.00024312,2]
[385909230,1758131450353,-1104.61,0.00024312,2]
[385909231,1758131450362,-400.0,0.00024312,2]
[385909232,1758131450371,-400.0,0.00024312,2]
[385909233,1758131450380,-400.0,0.00024312,2]
[385909234,1758131450390,-422.63,0.00024312,2]
[385909235,1758131450399,-404.0380418,0.00024312,2]
[385909236,1758131450408,-400.0,0.00024312,2]
[385909237,1758131450417,-472.2,0.00024312,2]
[385909238,1758131450426,-402.04413227,0.00024312,2]
[385909239,1758131450435,-626.4,0.00024312,2]
[385909240,1758131450445,-400.0,0.00024312,2]
[385909241,1758131450454,-400.0,0.00024312,2]
[385909242,1758131450464,-400.0,0.00024312,2]
[385909243,1758131450473,-400.0,0.00024312,2]
[385909244,1758131450482,-400.0,0.00024312,2]
[385909245,1758131450491,-400.0,0.00024312,2]
[385909246,1758131450500,-629.4,0.00024312,2]
[385909247,1758131450511,-457.35,0.00024312,2]
[385909248,1758131450520,-417.38133137,0.00024312,2]
[385909249,1758131450529,-771.83,0.00024312,2]
[385909250,1758131450538,-400.0,0.00024312,2]
[385909251,1758131450547,-400.0,0.00024312,2]
[385909252,1758131450557,-400.0,0.00024312,2]
[385909253,1758131450566,-446.12,0.00024312,2]
[385909254,1758131450575,-400.0,0.00024312,2]
[385909255,1758131450584,-406.17172149,0.00024312,2]
[385909256,1758131450594,-400.0,0.00024312,2]
[385909257,1758131450603,-400.0,0.00024312,2]
[385909258,1758131450612,-402.4446126,0.00024312,2]
[385909259,1758131450621,-485.9,0.00024312,2]
[385909260,1758131450630,-404.62379391,0.00024312,2]
[385909261,1758131450640,-400.0,0.00024312,2]
[385909262,1758131450650,-400.0,0.00024312,2]
[385909263,1758131450659,-400.0,0.00024312,2]
[385909264,1758131450669,-502.41,0.00024312,2]
[385909265,1758131450679,-572.43,0.00024312,2]
[385909266,1758131450689,-575.82,0.00024312,2]
[385909267,1758131450699,-577.21,0.00024312,2]
[385909268,1758131450708,-400.0,0.00024312,2]
[385909269,1758131450717,-400.0,0.00024312,2]
[385909270,1758131450726,-609.47,0.00024312,2]
[385909271,1758131450735,-697.32,0.00024312,2]
[385909272,1758131450745,-400.0,0.00024312,2]
[385909273,1758131450755,-400.0,0.00024312,2]
[385909274,1758131450765,-400.0,0.00024312,2]
[385909275,1758131450775,-534.9,0.00024312,2]
[385909276,1758131450784,-791.84,0.00024312,2]
[385909277,1758131450794,-400.0,0.00024312,2]
[385909278,1758131450804,-400.0,0.00024312,2]
[385909279,1758131450814,-631.56,0.00024312,2]
[385909280,1758131450823,-400.0,0.00024312,2]
[385909281,1758131450835,-400.0,0.00024312,2]
[385909282,1758131450845,-668.11,0.00024312,2]
[385909283,1758131450855,-400.0,0.00024312,2]
[385909284,1758131450864,-445.18,0.00024312,2]
[385909285,1758131450874,-400.0,0.00024312,2]
[385909286,1758131450884,-400.0,0.00024312,2]
[385909287,1758131450894,-400.0,0.00024312,2]
[385909288,1758131450903,-400.0,0.00024312,2]
[385909289,1758131450913,-400.0,0.00024312,2]
[385909290,1758131450925,-405.14319067,0.00024312,2]
[385909291,1758131450934,-500.0,0.00024312,2]
[385909292,1758131450944,-435.28,0.00024312,2]
[385909293,1758131450953,-500.0,0.00024312,2]
[385909294,1758131450963,-500.0,0.00024312,2]
[385909295,1758131450972,-400.0,0.00024312,2]
[385909296,1758131450982,-400.0,0.00024312,2]
[385909297,1758131450991,-589.94,0.00024312,2]
[385909298,1758131451001,-400.0,0.00024312,2]
[385909299,1758131451011,-404.45084647,0.00024312,2]
[385909300,1758131451021,-408.88,0.00024312,2]
[385909301,1758131451030,-400.0,0.00024312,2]
[385909302,1758131451039,-834.3,0.00024312,2]
[385909303,1758131451049,-400.0,0.00024312,2]
[385909304,1758131451058,-400.0,0.00024312,2]
[385909305,1758131451067,-400.0,0.00024312,2]
[385909306,1758131451077,-402.48593316,0.00024312,2]
[385909307,1758131451086,-647.06,0.00024312,2]
[385909308,1758131451096,-1362.11,0.00024312,2]
[385909309,1758131451105,-400.0,0.00024312,2]
[385909310,1758131451115,-400.0,0.00024312,2]
[385909311,1758131451124,-400.0,0.00024312,2]
[385909312,1758131451134,-400.0,0.00024312,2]
[385909313,1758131451143,-400.0,0.00024312,2]
[385909314,1758131451153,-3004.05,0.00024312,2]
[385909315,1758131451164,-400.0,0.00024312,2]
[385909316,1758131451175,-623.62,0.00024312,2]
[385909317,1758131451184,-401.17979285,0.00024312,2]
[385909318,1758131451193,-652.72,0.00024312,2]
[385909319,1758131451203,-400.0,0.00024312,2]
[385909320,1758131451212,-400.0,0.00024312,2]
[385909321,1758131451221,-500.0,0.00024312,2]
[385909322,1758131451230,-400.0,0.00024312,2]
[385909323,1758131451240,-441.69,0.00024312,2]
[385909324,1758131451251,-440.33,0.00024312,2]
[385909325,1758131451261,-400.0,0.00024312,2]
[385909326,1758131451271,-500.0,0.00024312,2]
[385909327,1758131451281,-617.06,0.00024312,2]
[385909328,1758131451291,-500.0,0.00024312,2]
[385909329,1758131451303,-400.0,0.00024312,2]
[385909330,1758131451314,-400.0,0.00024312,2]
[385909331,1758131451324,-783.59,0.00024312,2]
[385909332,1758131451333,-400.0,0.00024312,2]
[385909333,1758131451344,-851.11,0.00024312,2]
[385909334,1758131451353,-400.0,0.00024312,2]
[385909335,1758131451363,-529.36,0.00024312,2]
[385909336,1758131451373,-400.0,0.00024312,2]
[385909337,1758131451383,-850.01,0.00024312,2]
[385909338,1758131451392,-2019.89,0.00024312,2]
[385909339,1758131451401,-400.0,0.00024312,2]
[385909340,1758131451411,-400.0,0.00024312,2]
[385909341,1758131451421,-395.86838401,0.00024312,2]
[385909342,1758131451430,-400.0,0.00024312,2]
[385909343,1758131451439,-610.69,0.00024312,2]
[385909344,1758131451451,-400.0,0.00024312,2]
[385909345,1758131451461,-879.71,0.00024312,2]
[385909346,1758131451471,-400.0,0.00024312,2]
[385909347,1758131451480,-400.0,0.00024312,2]
[385909348,1758131451490,-400.0,0.00024312,2]
[385909349,1758131451499,-400.0,0.00024312,2]
[385909350,1758131451509,-506.5254365,0.00024312,2]
[385909351,1758131451519,-400.0,0.00024312,2]
[385909352,1758131451529,-1077.56,0.00024312,2]
[385909353,1758131451538,-403.58514021,0.00024312,2]
[385909354,1758131451549,-404.32426991,0.00024312,2]
[385909355,1758131451558,-563.26,0.00024312,2]
[385909356,1758131451568,-400.0,0.00024312,2]
[385909357,1758131451578,-400.0,0.00024312,2]
[385909358,1758131451587,-1151.34,0.00024312,2]
[385909359,1758131451597,-662.04,0.00024312,2]
[385909360,1758131451606,-400.0,0.00024312,2]
[385909361,1758131451616,-443.40457796,0.00024312,2]
[385909362,1758131451626,-770.48,0.00024312,2]
[385909363,1758131451635,-400.0,0.00024312,2]
[385909364,1758131451644,-575.67,0.00024312,2]
[385909365,1758131451654,-400.0,0.00024312,2]
[385909366,1758131451664,-566.71,0.00024312,2]
[385909367,1758131451674,-858.88,0.00024312,2]
[385909368,1758131451683,-400.0,0.00024312,2]
[385909369,1758131451693,-400.0,0.00024312,2]
[385909370,1758131451702,-400.0,0.00024312,2]
[385909371,1758131451712,-400.0,0.00024312,2]
[385909372,1758131451722,-400.0,0.00024312,2]
[385909373,1758131451731,-408.69811171,0.00024312,2]
[385909374,1758131451741,-400.0,0.00024312,2]
[385909375,1758131451751,-400.0,0.00024312,2]
[385909376,1758131451762,-408.04499089,0.00024312,2]
[385909377,1758131451771,-500.0,0.00024312,2]
[385909378,1758131451781,-400.0,0.00024312,2]
[385909379,1758131451791,-400.0,0.00024312,2]
[385909380,1758131451800,-151.81498266,0.00024313,2]
[385909381,1758131451809,-150.0,0.00024313,2]
[385909382,1758131451818,-500.0,0.00024313,2]
[385909383,1758131451827,-500.0,0.00024313,2]
[385909384,1758131451837,-500.0,0.00024313,2]
[385909385,1758131451847,-150.0,0.00024313,2]
[385909386,1758131451856,-200.75598379,0.00024313,2]
[385909387,1758131451865,-150.0,0.00024313,2]
[385909388,1758131451875,-400.0,0.00024313,2]
[385909389,1758131451884,-400.0,0.00024313,2]
[385909390,1758131451893,-400.0,0.00024313,2]
[385909391,1758131451903,-400.0,0.00024313,2]
[385909392,1758131451913,-400.0,0.00024313,2]
[385909393,1758131451926,-400.0,0.00024313,2]
[385909394,1758131451935,-400.0,0.00024313,2]
[385909395,1758131451945,-400.0,0.00024313,2]
[385909396,1758131451954,-400.0,0.00024313,2]
[385909397,1758131451963,-400.0,0.00024313,2]
[385909398,1758131451973,-400.0,0.00024313,2]
[385909399,1758131451982,-400.0,0.00024313,2]
[385909400,1758131451991,-400.0,0.00024313,2]
[385909401,1758131452000,-400.0,0.00024313,2]
[385909402,1758131452011,-400.0,0.00024313,2]
[385909403,1758131452020,-400.0,0.00024313,2]
[385909404,1758131452030,-400.0,0.00024313,2]
[385909405,1758131452040,-400.0,0.00024313,2]
[385909406,1758131452049,-400.0,0.00024313,2]
[385909407,1758131452058,-400.0,0.00024313,2]
[385909408,1758131452067,-400.0,0.00024313,2]
[385909409,1758131452077,-400.0,0.00024313,2]
[385909410,1758131452086,-1177.74,0.00024313,2]
[385909411,1758131452096,-400.0,0.00024313,2]
[385909412,1758131452105,-400.0,0.00024313,2]
[385909413,1758131452114,-400.0,0.00024313,2]
[385909414,1758131452123,-400.0,0.00024313,2]
[385909415,1758131452133,-400.0,0.00024313,2]
[385909416,1758131452142,-400.0,0.00024313,2]
[385909417,1758131452151,-400.0,0.00024313,2]
[385909418,1758131452161,-400.0,0.00024313,2]
[385909419,1758131452170,-400.0,0.00024313,2]
[385909420,1758131452179,-400.0,0.00024313,2]
[385909421,1758131452188,-400.0,0.00024313,2]
[385909422,1758131452198,-400.0,0.00024313,2]
[385909423,1758131452207,-400.0,0.00024313,2]
[385909424,1758131452217,-400.0,0.00024313,2]
[385909425,1758131452227,-400.0,0.00024313,2]
[385909426,1758131452237,-525.93,0.00024313,2]
[385909427,1758131452246,-400.0,0.00024313,2]
[385909428,1758131452256,-406.03,0.00024313,2]
[385909429,1758131452265,-405.13795858,0.00024313,2]
[385909430,1758131452274,-599.36,0.00024313,2]
[385909431,1758131452283,-400.0,0.00024313,2]
[385909432,1758131452293,-400.0,0.00024313,2]
[385909433,1758131452302,-400.0,0.00024313,2]
[385909434,1758131452311,-400.0,0.00024313,2]
[385909435,1758131452320,-400.0,0.00024313,2]
[385909436,1758131452330,-400.0,0.00024313,2]
[385909437,1758131452339,-400.0,0.00024313,2]
[385909438,1758131452349,-400.0,0.00024313,2]
[385909439,1758131452358,-400.0,0.00024313,2]
[385909440,1758131452367,-400.0,0.00024313,2]
[385909441,1758131452377,-400.0,0.00024313,2]
[385909442,1758131452386,-400.0,0.00024313,2]
[385909443,1758131452396,-400.0,0.00024313,2]
[385909444,1758131452406,-400.0,0.00024313,2]
[385909445,1758131452415,-400.0,0.00024313,2]
[385909446,1758131452424,-400.0,0.00024313,2]
[385909447,1758131452433,-400.0,0.00024313,2]
[385909448,1758131452443,-400.0,0.00024313,2]
[385909449,1758131452452,-400.0,0.00024313,2]
[385909450,1758131452462,-400.0,0.00024313,2]
[385909451,1758131452471,-400.0,0.00024313,2]
[385909452,1758131452480,-400.0,0.00024313,2]
[385909453,1758131452489,-400.0,0.00024313,2]
[385909454,1758131452498,-400.0,0.00024313,2]
[385909455,1758131452508,-729.55,0.00024313,2]
[385909456,1758131452518,-400.0,0.00024313,2]
[385909457,1758131452527,-400.0,0.00024313,2]
[385909458,1758131452537,-400.0,0.00024313,2]
[385909459,1758131452546,-400.0,0.00024313,2]
[385909460,1758131452555,-400.0,0.00024313,2]
[385909461,1758131452564,-400.0,0.00024313,2]
[385909462,1758131452573,-400.0,0.00024313,2]
[385909463,1758131452582,-400.0,0.00024313,2]
[385909464,1758131452591,-400.0,0.00024313,2]
[385909465,1758131452600,-400.0,0.00024313,2]
[385909466,1758131452609,-400.0,0.00024313,2]
[385909467,1758131452618,-615.12,0.00024313,2]
[385909468,1758131452627,-400.0,0.00024313,2]
[385909469,1758131452636,-400.0,0.00024313,2]
[385909470,1758131452645,-400.0,0.00024313,2]
[385909471,1758131452654,-400.0,0.00024313,2]
[385909472,1758131452663,-400.0,0.00024313,2]
[385909473,1758131452673,-400.0,0.00024313,2]
[385909474,1758131452683,-400.0,0.00024313,2]
[385909475,1758131452692,-400.0,0.00024313,2]
[385909476,1758131452702,-400.0,0.00024313,2]
[385909477,1758131452711,-400.0,0.00024313,2]
[385909478,1758131452720,-400.0,0.00024313,2]
[385909479,1758131452730,-403.13592728,0.00024313,2]
[385909480,1758131452740,-1328.41,0.00024313,2]
[385909481,1758131452749,-400.0,0.00024313,2]
[385909482,1758131452760,-400.0,0.00024313,2]
[385909483,1758131452769,-400.0,0.00024313,2]
[385909484,1758131452778,-400.0,0.00024313,2]
[385909485,1758131452788,-400.0,0.00024313,2]
[385909486,1758131452797,-400.0,0.00024313,2]
[385909487,1758131452806,-189.6432749,0.00024313,2]
[385909488,1758131452816,-400.0,0.00024313,2]
[385909489,1758131452825,-836.47,0.00024313,2]
[385909490,1758131452834,-408.05812379,0.00024313,2]
[385909491,1758131452843,-400.0,0.00024313,2]
[385909492,1758131452853,-400.0,0.00024313,2]
[385909493,1758131452862,-400.0,0.00024313,2]
[385909494,1758131452871,-400.0,0.00024313,2]
[385909495,1758131452880,-400.0,0.00024313,2]
[385909496,1758131452889,-400.0,0.00024313,2]
[385909497,1758131453071,-400.0,0.00024313,2]
[385909498,1758131453082,-285.99769869,0.00024313,2]
[385909499,1758131453091,-400.0,0.00024313,2]
[385909500,1758131453101,-400.0,0.00024313,2]
[385909501,1758131453110,-695.12,0.00024313,2]
[385909502,1758131453119,-556.99,0.00024313,2]
[385909503,1758131453129,-400.0,0.00024313,2]
[385909504,1758131453138,-400.0,0.00024313,2]
[385909505,1758131453147,-400.0,0.00024313,2]
[385909506,1758131453156,-400.0,0.00024313,2]
[385909507,1758131453165,-400.0,0.00024313,2]
[385909508,1758131453175,-400.0,0.00024313,2]
[385909509,1758131453184,-400.0,0.00024313,2]
[385909510,1758131453194,-400.0,0.00024313,2]
[385909511,1758131453203,-587.98,0.00024313,2]
[385909512,1758131453212,-671.85,0.00024313,2]
[385909513,1758131453221,-844.12,0.00024313,2]
[385909514,1758131453230,-400.0,0.00024313,2]
[385909515,1758131453239,-608.32,0.00024313,2]
[385909516,1758131453249,-400.0,0.00024313,2]
[385909517,1758131453260,-423.40716279,0.00024313,2]
[385909518,1758131453270,-906.32,0.00024313,2]
[385909519,1758131453279,-400.0,0.00024313,2]
[385909520,1758131453289,-400.0,0.00024313,2]
[385909521,1758131453299,-400.0,0.00024313,2]
[385909522,1758131453308,-400.0,0.00024313,2]
[385909523,1758131453317,-489.07,0.00024313,2]
[385909524,1758131453328,-400.0,0.00024313,2]
[385909525,1758131453337,-400.0,0.00024313,2]
[385909526,1758131453347,-400.0,0.00024313,2]
[385909527,1758131453356,-400.0,0.00024313,2]
[385909528,1758131453365,-408.79165103,0.00024313,2]
[385909529,1758131453375,-400.0,0.00024313,2]
[385909530,1758131453384,-400.0,0.00024313,2]
[385909531,1758131453395,-400.0,0.00024313,2]
[385909532,1758131453405,-173.74773803,0.00024313,2]
[385909533,1758131453414,-400.0,0.00024313,2]
[385909534,1758131453424,-400.0,0.00024313,2]
[385909535,1758131453433,-2034.54,0.00024313,2]
[385909536,1758131453442,-400.0,0.00024313,2]
[385909537,1758131453452,-436.53,0.00024313,2]
[385909538,1758131453461,-400.0,0.00024313,2]
[385909539,1758131453471,-400.0,0.00024313,2]
[385909540,1758131453480,-400.0,0.00024313,2]
[385909541,1758131453489,-407.34112144,0.00024313,2]
[385909542,1758131453499,-402.41079306,0.00024313,2]
[385909543,1758131453509,-400.0,0.00024313,2]
[385909544,1758131453519,-400.0,0.00024313,2]
[385909545,1758131453529,-600.71,0.00024313,2]
[385909546,1758131453537,-929.04,0.00024313,2]
[385909547,1758131453546,-400.0,0.00024313,2]
[385909548,1758131453555,-400.0,0.00024313,2]
[385909549,1758131453565,-400.0,0.00024313,2]
[385909550,1758131453574,-400.0,0.00024313,2]
[385909551,1758131453583,-400.0,0.00024313,2]
[385909552,1758131453592,-400.0,0.00024313,2]
[385909553,1758131453602,-789.08,0.00024313,2]
[385909554,1758131453611,-400.0,0.00024313,2]
[385909555,1758131453621,-400.0,0.00024313,2]
[385909556,1758131453631,-400.0,0.00024313,2]
[385909557,1758131453640,-407.83610449,0.00024313,2]
[385909558,1758131453650,-400.0,0.00024313,2]
[385909559,1758131453659,-403.46603548,0.00024313,2]
[385909560,1758131453668,-400.0,0.00024313,2]
[385909561,1758131453677,-400.0,0.00024313,2]
[385909562,1758131453688,-586.41,0.00024313,2]
[385909563,1758131453697,-400.0,0.00024313,2]
[385909564,1758131453706,-973.91,0.00024313,2]
[385909565,1758131453716,-400.0,0.00024313,2]
[385909566,1758131453725,-400.0,0.00024313,2]
[385909567,1758131453735,-488.2,0.00024313,2]
[385909568,1758131453744,-400.0,0.00024313,2]
[385909569,1758131453753,-413.72731043,0.00024313,2]
[385909570,1758131453764,-400.0,0.00024313,2]
[385909571,1758131453773,-400.0,0.00024313,2]
[385909572,1758131453783,-811.5,0.00024313,2]
[385909573,1758131453792,-400.0,0.00024313,2]
[385909574,1758131453802,-561.36,0.00024313,2]
[385909575,1758131453811,-400.0,0.00024313,2]
[385909576,1758131453821,-400.0,0.00024313,2]
[385909577,1758131453830,-400.0,0.00024313,2]
[385909578,1758131453840,-400.0,0.00024313,2]
[385909579,1758131453850,-535.28519896,0.00024313,2]
[385909580,1758131453860,-400.0,0.00024313,2]
[385909581,1758131453871,-400.0,0.00024313,2]
[385909582,1758131453881,-315.43543479,0.00024313,2]
[385909583,1758131453891,-400.0,0.00024313,2]
[385909584,1758131453901,-400.0,0.00024313,2]
[385909585,1758131453911,-226.00036785,0.00024313,2]
[385909586,1758131453920,-514.08,0.00024313,2]
[385909587,1758131453930,-400.0,0.00024313,2]
[385909588,1758131453940,-500.97,0.00024313,2]
[385909589,1758131453949,-400.0,0.00024313,2]
[385909590,1758131453959,-400.0,0.00024313,2]
[385909591,1758131453968,-440.9,0.00024313,2]
[385909592,1758131453977,-424.33,0.00024313,2]
[385909593,1758131453987,-400.0,0.00024313,2]
[385909594,1758131453997,-605.89,0.00024313,2]
[385909595,1758131454006,-400.0,0.00024313,2]
[385909596,1758131454016,-400.0,0.00024313,2]
[385909597,1758131454026,-400.0,0.00024313,2]
[385909598,1758131454035,-552.42,0.00024313,2]
[385909599,1758131454045,-400.0,0.00024313,2]
[385909600,1758131454054,-400.0,0.00024313,2]
[385909601,1758131454064,-400.0,0.00024313,2]
[385909602,1758131454073,-400.0,0.00024313,2]
[385909603,1758131454082,-490.12396728,0.00024313,2]
[385909604,1758131454091,-670.68,0.00024313,2]